bitfinex/quotes_SOLUSD_20240623
["timestamp","ask_amount","ask_price","bid_price","bid_amount"]
[1719165105023,7.96680833,131.33,131.25,100.0]
[1719165105223,45.0,131.32,131.25,100.0]
[1719165106335,45.0,131.32,131.24,100.0]
[1719165106926,45.0,131.32,131.23,100.0]
[1719165107328,16.1584,131.31,131.23,100.0]
[1719165107636,45.0,131.3,131.23,100.0]
[1719165108740,45.0,131.3,131.22,100.0]
[1719165109325,6.2703,131.29,131.2,100.0]
[1719165109528,45.0,131.28,131.2,100.0]
[1719165113148,29.6891,131.27,131.18,100.0]
[1719165113320,45.0,131.26,131.18,100.0]
[1719165115147,7.96616543,131.25,131.18,100.0]
[1719165116857,45.0,131.24,131.17,100.0]
[1719165120168,16.0205,131.23,131.16,100.0]
[1719165122174,16.0205,131.23,131.18,200.0]
[1719165122364,16.0205,131.23,131.2,100.0]
[1719165122882,16.0205,131.23,131.18,200.0]
[1719165126282,23.98238995,131.23,131.18,100.0]
[1719165128875,23.98238995,131.23,131.16,100.0]
[1719165129049,6.5955,131.22,131.16,100.0]
[1719165130762,6.5955,131.22,131.14,200.0]
[1719165131974,6.5955,131.22,131.16,100.0]
[1719165132377,6.5955,131.22,131.16,200.0]
[1719165136372,7.96533144,131.21,131.16,200.0]
[1719165138273,7.96533144,131.21,131.19,100.0]
[1719165138576,16.0205,131.23,131.19,100.0]
[1719165139482,16.0205,131.23,131.18,100.0]
[1719165141875,16.0205,131.23,131.17,100.0]
[1719165147381,16.0205,131.23,131.18,100.0]
[1719165147569,16.0205,131.23,131.2,100.0]
[1719165147776,16.0205,131.23,131.2,200.0]
[1719165147970,13.90906589,131.24,131.2,200.0]
[1719165148489,13.90906589,131.24,131.21,1.26060255]
[1719165149983,13.90906589,131.24,131.18,200.0]
[1719165150367,13.90906589,131.24,131.18,100.0]
[1719165151785,13.90906589,131.24,131.16,200.0]
[1719165152978,45.0,131.23,131.16,200.0]
[1719165153698,7.96828393,131.22,131.16,200.0]
[1719165156412,7.96828393,131.22,131.16,100.0]
[1719165156882,15.7721,131.21,131.14,200.0]
[1719165159299,6.0308,131.2,131.14,200.0]
[1719165164002,7.97071831,131.19,131.14,200.0]
[1719165166011,15.7721,131.21,131.16,200.0]
[1719165167906,15.7721,131.21,131.14,200.0]
[1719165170085,15.7721,131.21,131.16,100.0]
[1719165170292,15.7721,131.21,131.16,200.0]
[1719165178691,15.7721,131.21,131.14,200.0]
[1719165179112,15.7721,131.21,131.14,100.0]
[1719165179329,7.96933191,131.2,131.14,100.0]
[1719165184323,7.96933191,131.2,131.14,200.0]
[1719165184620,7.96933191,131.2,131.16,200.0]
[1719165185010,15.7721,131.21,131.16,200.0]
[1719165187227,15.7721,131.21,131.18,100.0]
[1719165188328,15.7721,131.21,131.12,7.1036516]
[1719165188329,7.96825747,131.22,131.2,145.84]
[1719165188507,15.9389,131.28,131.25,100.0]
[1719165188702,6.09228543,131.3,131.25,100.0]
[1719165188905,15.9389,131.31,131.27,100.0]
[1719165189719,15.9389,131.31,131.25,100.0]
[1719165189926,15.9389,131.31,131.23,100.0]
[1719165191146,45.0,131.3,131.23,100.0]
[1719165192044,7.95991992,131.29,131.23,100.0]
[1719165197258,7.95991992,131.29,131.21,100.0]
[1719165197418,45.0,131.28,131.21,100.0]
[1719165197622,7.95991992,131.29,131.22,100.0]
[1719165201553,14.06750674,131.29,131.22,100.0]
[1719165204555,14.06750674,131.29,131.23,100.0]
[1719165206072,14.06750674,131.29,131.25,100.0]
[1719165208848,14.06750674,131.29,131.26,100.0]
[1719165214054,15.9389,131.31,131.27,100.0]
[1719165214361,23.90035843,131.31,131.27,100.0]
[1719165215859,29.8889667,131.31,131.27,100.0]
[1719165217638,21.92750827,131.31,131.27,100.0]
[1719165218077,15.9389,131.31,131.28,100.0]
[1719165218240,16.0888,131.34,131.29,100.0]
[1719165218563,24.04923172,131.34,131.29,100.0]
[1719165220070,30.06609064,131.34,131.29,100.0]
[1719165224481,30.06609064,131.34,131.27,100.0]
[1719165224646,45.0,131.33,131.25,100.0]
[1719165226265,53.01498562,131.33,131.23,100.0]
[1719165228662,7.636,131.31,131.23,100.0]
[1719165228868,45.0,131.3,131.23,100.0]
[1719165232956,45.0,131.3,131.24,100.0]
[1719165233158,45.0,131.31,131.24,100.0]
[1719165233878,30.71554884,131.32,131.25,100.0]
[1719165236366,8.34094884,131.32,131.27,100.0]
[1719165236560,7.96196322,131.32,131.27,100.0]
[1719165237077,7.96196322,131.32,131.26,100.0]
[1719165238264,45.0,131.31,131.24,100.0]
[1719165238465,45.0,131.31,131.23,100.0]
[1719165239354,7.96124263,131.3,131.23,100.0]
[1719165244165,24.46734263,131.3,131.23,100.0]
[1719165247991,45.0,131.29,131.23,100.0]
[1719165249483,45.0,131.29,131.21,100.0]
[1719165249669,7.96392642,131.28,131.19,100.0]
[1719165249871,67.8916,131.27,131.19,100.0]
[1719165251703,7.636,131.26,131.19,100.0]
[1719165252986,45.0,131.25,131.19,100.0]
[1719165258983,45.0,131.26,131.19,100.0]
[1719165260019,7.9658849,131.25,131.19,100.0]
[1719165264802,7.9658849,131.25,131.2,100.0]
[1719165264994,7.9658849,131.25,131.23,100.0]
[1719165265192,16.5061,131.27,131.23,100.0]
[1719165266407,22.62144346,131.27,131.23,100.0]
[1719165268710,7.96544499,131.28,131.23,100.0]
[1719165269012,7.96544499,131.28,131.26,100.0]
[1719165269807,7.96544499,131.28,131.25,100.0]
[1719165269990,7.96544499,131.28,131.24,100.0]
[1719165271710,7.96544499,131.28,131.25,100.0]
[1719165272693,7.96544499,131.28,131.24,100.0]
[1719165278634,7.96544499,131.28,131.25,100.0]
[1719165281521,7.96544499,131.28,131.24,100.0]
[1719165281701,7.96544499,131.28,131.25,100.0]
[1719165282606,7.96544499,131.28,131.26,100.0]
[1719165283397,7.96544499,131.28,131.27,100.0]
[1719165286826,7.96544499,131.28,131.25,100.0]
[1719165287211,7.96544499,131.28,131.24,100.0]
[1719165288700,7.96544499,131.28,131.23,100.0]
[1719165288898,7.96544499,131.28,131.22,100.0]
[1719165292528,15.9998,131.27,131.21,100.0]
[1719165292707,60.9998,131.27,131.21,100.0]
[1719165293302,7.96464004,131.26,131.21,100.0]
[1719165294709,7.96464004,131.26,131.25,100.0]
[1719165294910,7.96464004,131.26,131.25,200.0]
[1719165295114,6.08324195,131.32,131.25,200.0]
[1719165295430,7.96308576,131.28,131.25,200.0]
[1719165295631,22.5125,131.33,131.25,200.0]
[1719165296027,7.96237024,131.28,131.25,200.0]
[1719165296330,22.5125,131.33,131.25,200.0]
[1719165296533,7.96376993,131.28,131.25,200.0]
[1719165297030,7.9629299,131.28,131.25,200.0]
[1719165297720,7.9629299,131.28,131.25,100.0]
[1719165299030,7.9629299,131.28,131.23,200.0]
[1719165302519,23.5353299,131.28,131.23,200.0]
[1719165302920,23.5353299,131.28,131.21,200.0]
[1719165303317,23.5353299,131.28,131.23,100.0]
[1719165303536,23.5353299,131.28,131.24,1.10506492]
[1719165304042,23.5353299,131.28,131.24,101.10506492]
[1719165304418,7.9629299,131.28,131.26,200.0]
[1719165304625,7.9629299,131.28,131.27,1.10481237]
[1719165305231,7.9629299,131.28,131.26,200.0]
[1719165307634,7.9629299,131.28,131.24,200.0]
[1719165309026,7.9629299,131.28,131.24,100.0]
[1719165310327,15.247,131.27,131.22,100.0]
[1719165311057,7.96159964,131.26,131.22,100.0]
[1719165313254,7.96159964,131.26,131.2,200.0]
[1719165313955,7.96159964,131.26,131.22,100.0]
[1719165314635,7.96159964,131.26,131.22,200.0]
[1719165317061,7.96159964,131.26,131.18,61.9386]
[1719165317062,7.96159964,131.26,131.24,200.0]
[1719165317367,15.247,131.27,131.24,200.0]
[1719165317949,7.95883113,131.28,131.24,200.0]
[1719165318247,7.95883113,131.28,131.26,100.0]
[1719165318833,7.95883113,131.28,131.26,200.0]
[1719165321345,7.95883113,131.28,131.26,100.0]
[1719165322261,7.95883113,131.28,131.24,200.0]
[1719165322444,7.95883113,131.28,131.22,200.0]
[1719165322638,7.95883113,131.28,131.22,100.0]
[1719165324042,7.95883113,131.28,131.2,200.0]
[1719165326870,45.0,131.27,131.2,200.0]
[1719165327742,21.516,131.26,131.2,100.0]
[1719165327944,29.47760813,131.26,131.18,200.0]
[1719165330466,29.47760813,131.26,131.18,100.0]
[1719165330792,29.47760813,131.26,131.16,145.83]
[1719165330793,29.47760813,131.26,131.2,100.0]
[1719165332659,29.47760813,131.26,131.21,100.0]
[1719165334568,29.47760813,131.26,131.2,100.0]
[1719165335071,7.96160813,131.26,131.24,200.0]
[1719165335266,15.8927,131.29,131.24,200.0]
[1719165335469,7.96075904,131.28,131.24,200.0]
[1719165335846,7.96075904,131.28,131.26,100.0]
[1719165342374,7.96075904,131.28,131.24,100.0]
[1719165344271,7.96075904,131.28,131.22,100.0]
[1719165347271,7.96075904,131.28,131.25,100.0]
[1719165348399,7.96075904,131.28,131.26,100.0]
[1719165351787,7.96075904,131.28,131.27,100.0]
[1719165358700,6.19205726,131.32,131.28,100.0]
[1719165358896,7.96190028,131.32,131.28,100.0]
[1719165360281,7.96190028,131.32,131.29,100.0]
[1719165360588,15.0038,131.33,131.29,100.0]
[1719165362601,15.0038,131.33,131.28,100.0]
[1719165363282,15.0038,131.33,131.26,100.0]
[1719165364999,15.0038,131.33,131.28,200.0]
[1719165366416,15.0038,131.33,131.3,100.0]
[1719165367002,13.9724048,131.34,131.3,100.0]
[1719165367701,13.9724048,131.34,131.3,200.0]
[1719165371907,7.95827298,131.34,131.3,200.0]
[1719165381916,7.95827298,131.34,131.32,200.0]
[1719165382095,15.1517,131.36,131.33,1.41656041]
[1719165382412,23.10662927,131.36,131.33,1.41656041]
[1719165384303,29.02859446,131.36,131.33,1.41656041]
[1719165384702,29.02859446,131.36,131.32,200.0]
[1719165385103,29.02859446,131.36,131.33,0.67518052]
[1719165385910,29.02859446,131.36,131.32,200.0]
[1719165386721,29.02859446,131.36,131.32,100.0]
[1719165389305,13.87689446,131.36,131.32,200.0]
[1719165395534,268.87689446,131.36,131.32,200.0]
[1719165396829,13.87689446,131.36,131.3,100.0]
[1719165397014,13.87689446,131.36,131.3,200.0]
[1719165397420,13.87689446,131.36,131.3,100.0]
[1719165397621,13.87689446,131.36,131.28,200.0]
[1719165397810,60.7695,131.35,131.28,200.0]
[1719165398306,15.7695,131.35,131.3,200.0]
[1719165398510,7.95812816,131.34,131.3,200.0]
[1719165404342,7.95812816,131.34,131.32,200.0]
[1719165404640,15.7695,131.38,131.32,200.0]
[1719165404939,29.85430634,131.38,131.32,200.0]
[1719165410240,29.85430634,131.38,131.3,200.0]
[1719165410437,45.0,131.37,131.28,200.0]
[1719165415428,7.96070545,131.36,131.28,200.0]
[1719165418729,45.0,131.35,131.28,200.0]
[1719165425653,7.96217138,131.34,131.28,200.0]
[1719165427460,7.96217138,131.34,131.3,200.0]
[1719165429777,7.96217138,131.34,131.3,100.0]
[1719165431443,7.96217138,131.34,131.28,200.0]
[1719165432664,7.96217138,131.34,131.3,200.0]
[1719165432867,21.89793239,131.38,131.3,200.0]
[1719165433180,7.96061065,131.36,131.32,200.0]
[1719165434358,21.89793239,131.38,131.32,200.0]
[1719165434549,7.95880017,131.37,131.34,200.0]
[1719165434755,7.95880017,131.37,131.36,200.0]
[1719165434943,5.9286597,131.4,131.36,200.0]
[1719165435155,15.2823,131.41,131.36,200.0]
[1719165435670,15.2823,131.41,131.38,100.0]
[1719165441547,15.2823,131.41,131.36,200.0]
[1719165442651,15.2823,131.41,131.37,1.52222475]
[1719165443772,15.2823,131.41,131.36,200.0]
[1719165447774,10.2823,131.41,131.36,200.0]
[1719165448370,10.2823,131.41,131.34,245.83]
[1719165450360,10.2823,131.41,131.36,100.0]
[1719165453579,10.2823,131.41,131.34,200.0]
[1719165454164,10.2823,131.41,131.34,100.0]
[1719165454776,45.0,131.4,131.34,100.0]
[1719165457486,10.2823,131.41,131.34,100.0]
[1719165459193,7.9581203,131.4,131.34,100.0]
[1719165460507,7.9581203,131.4,131.34,200.0]
[1719165470697,7.9581203,131.4,131.32,200.0]
[1719165471002,21.852,131.38,131.3,100.0]
[1719165471298,45.0,131.37,131.3,100.0]
[1719165471674,7.95467954,131.36,131.3,100.0]
[1719165478197,15.2781,131.35,131.28,200.0]
[1719165478381,60.2781,131.35,131.28,200.0]
[1719165480977,6.5739,131.34,131.28,100.0]
[1719165481604,6.5739,131.34,131.26,245.83]
[1719165482203,7.96290826,131.33,131.26,245.83]
[1719165482398,7.96290826,131.33,131.28,200.0]
[1719165482699,6.5739,131.34,131.28,200.0]
[1719165482905,6.5739,131.34,131.3,100.0]
[1719165484324,6.5739,131.34,131.3,200.0]
[1719165484521,23.2396112,131.35,131.3,200.0]
[1719165484806,23.2396112,131.35,131.32,200.0]
[1719165485023,6.17916966,131.37,131.32,200.0]
[1719165485212,15.2781,131.38,131.32,200.0]
[1719165485516,7.95634374,131.37,131.32,200.0]
[1719165485875,7.95634374,131.37,131.3,200.0]
[1719165488607,7.95634374,131.37,131.28,200.0]
[1719165488803,45.0,131.36,131.28,200.0]
[1719165494918,45.0,131.36,131.3,100.0]
[1719165495293,15.2781,131.38,131.3,200.0]
[1719165495492,15.2781,131.38,131.32,100.0]
[1719165495694,7.95610843,131.35,131.32,200.0]
[1719165495903,15.2781,131.38,131.32,200.0]
[1719165496392,7.95228891,131.37,131.34,200.0]
[1719165496808,15.2781,131.38,131.34,200.0]
[1719165498196,15.2781,131.38,131.32,200.0]
[1719165501695,15.2781,131.38,131.32,100.0]
[1719165501922,15.2781,131.38,131.3,200.0]
[1719165502224,15.2781,131.38,131.32,100.0]
[1719165502398,15.2781,131.38,131.33,1.53413313]
[1719165502821,15.2781,131.38,131.32,100.0]
[1719165503030,45.0,131.37,131.3,200.0]
[1719165503223,15.2781,131.38,131.3,200.0]
[1719165503468,15.2781,131.38,131.32,100.0]
[1719165505006,15.2781,131.38,131.3,200.0]
[1719165505919,45.0,131.37,131.3,200.0]
[1719165507624,7.95733407,131.36,131.3,200.0]
[1719165509023,7.95733407,131.36,131.28,200.0]
[1719165509232,45.0,131.35,131.28,200.0]
[1719165510437,21.4169,131.34,131.28,200.0]
[1719165510830,21.4169,131.34,131.28,100.0]
[1719165511131,21.4169,131.34,131.26,245.83]
[1719165513016,21.4169,131.34,131.28,200.0]
[1719165513233,21.4169,131.34,131.29,1.52012624]
[1719165513412,21.4169,131.34,131.28,200.0]
[1719165514421,21.4169,131.34,131.31,100.0]
[1719165517740,29.3753454,131.34,131.31,100.0]
[1719165518470,22.9956454,131.34,131.31,200.0]
[1719165518648,7.9584454,131.34,131.31,200.0]
[1719165518820,5.98846204,131.35,131.31,200.0]
[1719165519022,7.95635555,131.36,131.31,200.0]
[1719165519239,7.95635555,131.36,131.34,100.0]
[1719165519435,15.9259,131.37,131.34,100.0]
[1719165520546,7.95502758,131.38,131.34,100.0]
[1719165520923,14.10700477,131.38,131.34,100.0]
[1719165524020,14.10700477,131.38,131.32,100.0]
[1719165526137,15.9259,131.37,131.3,100.0]
[1719165526461,15.9259,131.37,131.29,100.0]
[1719165526640,45.0,131.36,131.29,100.0]
[1719165527644,6.4128,131.35,131.28,100.0]
[1719165527851,45.0,131.34,131.28,100.0]
[1719165530060,7.95851282,131.33,131.28,100.0]
[1719165530869,16.6001,131.32,131.26,100.0]
[1719165532467,16.6001,131.32,131.28,100.0]
[1719165534769,7.95851282,131.33,131.28,100.0]
[1719165543664,7.95851282,131.33,131.3,100.0]
[1719165543853,23.0129,131.35,131.32,100.0]
[1719165544166,30.96305277,131.35,131.32,100.0]
[1719165545146,24.55025277,131.35,131.32,100.0]
[1719165546750,7.95015277,131.35,131.32,100.0]
[1719165549747,7.95015277,131.35,131.34,100.0]
[1719165550048,16.4343,131.38,131.34,100.0]
[1719165550642,16.4343,131.38,131.33,100.0]
[1719165550643,7.94795593,131.39,131.36,100.0]
[1719165550881,6.12581673,131.43,131.38,100.0]
[1719165551175,7.94590124,131.42,131.39,0.71245009]
[1719165551851,7.94590124,131.42,131.39,100.71245009]
[1719165552050,7.94590124,131.42,131.4,0.71239587]
[1719165552759,7.0110298,131.45,131.4,100.71239587]
[1719165552760,0.6084298,131.45,131.4,100.71239587]
[1719165552963,8.55194995,131.45,131.41,100.0]
[1719165553164,8.55194995,131.45,131.42,0.7125729]
[1719165553369,14.65955315,131.45,131.41,100.0]
[1719165553675,14.65955315,131.45,131.4,100.0]
[1719165554058,14.65955315,131.45,131.39,100.0]
[1719165554381,14.65955315,131.45,131.38,100.0]
[1719165554888,45.0,131.44,131.38,100.0]
[1719165557574,45.0,131.44,131.39,1.6084862]
[1719165563063,14.65955315,131.45,131.39,1.6084862]
[1719165564255,14.65955315,131.45,131.4,100.0]
[1719165565564,14.65955315,131.45,131.4,200.0]
[1719165567162,14.65955315,131.45,131.38,200.0]
[1719165569380,45.0,131.44,131.38,100.0]
[1719165570082,7.9570207,131.43,131.38,200.0]
[1719165575879,7.9570207,131.43,131.38,100.0]
[1719165576078,7.9570207,131.43,131.38,200.0]
[1719165576680,7.9570207,131.43,131.38,100.0]
[1719165577298,23.0632207,131.43,131.38,100.0]
[1719165581192,23.0632207,131.43,131.34,200.0]
[1719165581379,45.0,131.42,131.34,200.0]
[1719165582093,7.95801514,131.41,131.34,200.0]
[1719165587114,7.95801514,131.41,131.36,100.0]
[1719165587290,7.95801514,131.41,131.36,200.0]
[1719165594308,7.95801514,131.41,131.36,100.0]
[1719165595600,13.95739373,131.41,131.36,100.0]
[1719165596096,13.95739373,131.41,131.34,200.0]
[1719165597314,19.99879373,131.41,131.34,200.0]
[1719165599799,15.9509,131.4,131.34,200.0]
[1719165599999,15.9509,131.4,131.32,100.0]
[1719165600208,15.9509,131.4,131.3,162.4089]
[1719165600209,45.0,131.39,131.3,200.0]
[1719165600389,45.0,131.39,131.32,100.0]
[1719165600589,52.96043935,131.39,131.32,100.0]
[1719165600812,52.96043935,131.39,131.3,200.0]
[1719165600994,52.96043935,131.39,131.32,100.0]
[1719165601396,52.96043935,131.39,131.3,100.0]
[1719165601605,21.9923,131.38,131.28,200.0]
[1719165601793,45.0,131.37,131.28,200.0]
[1719165602113,45.0,131.37,131.31,100.0]
[1719165602311,21.9923,131.38,131.32,100.0]
[1719165605204,21.9923,131.38,131.34,100.0]
[1719165605410,7.96043935,131.39,131.37,100.0]
[1719165605617,12.04077859,131.41,131.37,100.0]
[1719165606117,19.9988408,131.41,131.36,100.0]
[1719165606617,19.9988408,131.41,131.34,100.0]
[1719165607917,45.0,131.4,131.34,100.0]
[1719165609597,15.9509,131.39,131.32,100.0]
[1719165609795,15.9509,131.39,131.31,100.0]
[1719165610008,45.0,131.38,131.31,100.0]
[1719165610911,45.0,131.38,131.31,200.0]
[1719165612418,15.9509,131.39,131.33,100.0]
[1719165612598,15.9509,131.39,131.35,100.0]
[1719165613999,19.9988408,131.41,131.37,100.0]
[1719165614212,7.95806221,131.41,131.37,100.0]
[1719165614409,7.95806221,131.41,131.4,100.0]
[1719165615001,7.95806221,131.41,131.4,107.6103]
[1719165615202,7.95806221,131.41,131.4,100.0]
[1719165616124,7.95806221,131.41,131.4,153.6103]
[1719165616420,0.6084298,131.45,131.44,100.0]
[1719165616626,0.6084298,131.45,131.44,145.83]
[1719165616926,0.6084298,131.45,131.44,153.438]
[1719165617123,0.6084298,131.45,131.44,153.778]
[1719165617702,0.6084298,131.45,131.44,145.83]
[1719165618701,0.6084298,131.45,131.44,100.0]
[1719165620229,0.6084298,131.45,131.43,100.0]
[1719165621035,0.6084298,131.45,131.44,100.0]
[1719165622125,0.6084298,131.45,131.44,170.171]
[1719165622430,6.5732,131.55,131.49,200.0]
[1719165622616,7.92577857,131.53,131.49,200.0]
[1719165623810,6.5732,131.55,131.49,200.0]
[1719165624211,7.92977096,131.54,131.49,200.0]
[1719165629435,7.92977096,131.54,131.51,100.0]
[1719165629616,7.92977096,131.54,131.51,200.0]
[1719165629806,7.92977096,131.54,131.53,100.0]
[1719165630014,0.8620814,131.58,131.53,200.0]
[1719165630332,8.78024281,131.58,131.55,200.0]
[1719165630723,0.8620814,131.58,131.55,200.0]
[1719165630924,0.8620814,131.58,131.56,1.93745632]
[1719165631223,0.8620814,131.58,131.56,0.61060406]
[1719165632322,0.8620814,131.58,131.57,200.0]
[1719165634336,0.8620814,131.58,131.55,100.0]
[1719165635256,0.8620814,131.58,131.56,100.0]
[1719165635458,0.8620814,131.58,131.57,100.0]
[1719165645528,0.3620814,131.58,131.57,100.0]
[1719165647325,0.3620814,131.58,131.57,145.8]
[1719165647531,0.3620814,131.58,131.57,145.97]
[1719165648624,0.3620814,131.58,131.57,146.14]
[1719165649827,0.3620814,131.58,131.57,152.7687]
[1719165653352,0.3620814,131.58,131.57,160.3692]
[1719165653584,7.91677392,131.66,131.64,100.0]
[1719165654437,15.1537,131.67,131.64,100.0]
[1719165655059,15.1537,131.67,131.65,0.80856576]
[1719165656453,7.91228692,131.69,131.66,100.0]
[1719165656760,7.91228692,131.69,131.67,1.27425435]
[1719165656941,7.91228692,131.69,131.66,100.0]
[1719165657541,7.91228692,131.69,131.64,200.0]
[1719165658147,7.91228692,131.69,131.66,100.0]
[1719165660639,7.91228692,131.69,131.66,200.0]
[1719165663350,7.91228692,131.69,131.67,100.0]
[1719165663765,16.5223,131.7,131.67,100.0]
[1719165663960,0.8620814,131.71,131.69,100.0]
[1719165664158,0.8620814,131.71,131.7,0.86021916]
[1719165664984,0.8620814,131.71,131.69,200.0]
[1719165665343,0.8620814,131.71,131.7,0.17]
[1719165665545,0.8620814,131.71,131.7,0.34]
[1719165666046,0.8620814,131.71,131.69,245.8]
[1719165666249,0.8620814,131.71,131.69,200.0]
[1719165666469,0.8620814,131.71,131.69,100.0]
[1719165667643,0.8620814,131.71,131.7,145.8]
[1719165669668,0.8620814,131.71,131.7,100.0]
[1719165670864,0.8620814,131.71,131.7,245.8]
[1719165671288,0.8620814,131.71,131.7,100.0]
[1719165671673,0.3620814,131.71,131.7,245.8]
[1719165672255,0.3620814,131.71,131.7,100.0]
[1719165672754,0.3620814,131.71,131.7,245.8]
[1719165672971,0.3620814,131.71,131.7,100.0]
[1719165673869,0.3620814,131.71,131.68,146.14]
[1719165673870,0.3620814,131.71,131.68,45.8]
[1719165674050,15.7257814,131.71,131.67,100.0]
[1719165674662,0.3620814,131.71,131.7,100.0]
[1719165675664,0.3620814,131.71,131.7,200.0]
[1719165676670,0.3620814,131.71,131.7,245.97]
[1719165676844,0.3620814,131.71,131.7,246.14]
[1719165677049,0.3620814,131.71,131.7,245.8]
[1719165678987,0.3620814,131.71,131.7,145.8]
[1719165679151,0.3620814,131.71,131.7,100.0]
[1719165680675,0.3620814,131.71,131.7,200.0]
[1719165682360,0.3620814,131.71,131.7,100.0]
[1719165683078,0.3620814,131.71,131.7,200.0]
[1719165683273,0.3620814,131.71,131.7,245.8]
[1719165683475,7.91225782,131.72,131.7,246.14]
[1719165683679,15.3637,131.79,131.76,100.0]
[1719165684062,23.28749649,131.79,131.76,100.0]
[1719165687365,23.28749649,131.79,131.74,200.0]
[1719165687570,23.28749649,131.79,131.74,100.0]
[1719165689283,23.28749649,131.79,131.76,100.0]
[1719165694893,7.92379649,131.79,131.76,100.0]
[1719165699676,7.92379649,131.79,131.74,145.8]
[1719165699677,7.92379649,131.79,131.74,100.0]
[1719165705986,7.92379649,131.79,131.76,100.0]
[1719165706487,7.92379649,131.79,131.78,100.0]
[1719165715100,7.92379649,131.79,131.78,145.8]
[1719165715600,15.6635,131.86,131.79,100.0]
[1719165715797,7.92992351,131.83,131.79,100.0]
[1719165717190,7.92992351,131.83,131.81,100.0]
[1719165717602,7.92992351,131.83,131.82,145.8]
[1719165717904,0.8620814,131.85,131.84,100.0]
[1719165718286,0.8620814,131.85,131.84,145.97]
[1719165719298,0.8620814,131.85,131.84,145.8]
[1719165719694,0.8620814,131.85,131.84,100.0]
[1719165720701,0.8620814,131.85,131.82,100.0]
[1719165723405,0.8620814,131.85,131.84,100.0]
[1719165724004,0.8620814,131.85,131.84,200.0]
[1719165724208,0.8620814,131.85,131.84,245.8]
[1719165724508,0.8620814,131.85,131.84,245.97]
[1719165725602,0.8620814,131.85,131.84,270.3372]
[1719165725787,15.28,131.95,131.92,100.0]
[1719165726184,23.20815751,131.95,131.92,100.0]
[1719165727315,7.92815751,131.95,131.92,100.0]
[1719165727622,2.92815751,131.95,131.92,100.0]
[1719165727786,6.07277877,131.96,131.92,100.0]
[1719165727982,6.1925,131.97,131.92,100.0]
[1719165729002,24.06995571,131.98,131.94,100.0]
[1719165730019,24.06995571,131.98,131.92,100.0]
[1719165731021,30.0081696,131.98,131.92,100.0]
[1719165731513,30.0081696,131.98,131.9,45.8]
[1719165731514,30.0081696,131.98,131.9,100.0]
[1719165732519,6.0831,131.97,131.88,100.0]
[1719165733635,6.0831,131.97,131.92,100.0]
[1719165734123,6.0831,131.97,131.9,100.0]
[1719165734316,6.0831,131.97,131.88,100.0]
[1719165734502,16.2442,131.95,131.86,100.0]
[1719165735511,16.2442,131.95,131.88,100.0]
[1719165738528,7.93097218,131.94,131.88,100.0]
[1719165740105,7.93097218,131.94,131.86,100.0]
[1719165740827,7.626,131.93,131.86,100.0]
[1719165741717,6.5132,131.92,131.86,100.0]
[1719165742912,7.626,131.9,131.82,145.8]
[1719165743106,7.626,131.9,131.82,100.0]
[1719165743316,16.5806,131.91,131.82,100.0]
[1719165743909,7.626,131.89,131.82,100.0]